fUSD/lending_fUSD_20241024
["ID","MTS","AMOUNT","RATE_DAILY","PERIOD"]
[340741845,1729770647614,-381.1,0.00060547,7]
[340741846,1729770647624,-439.77355191,0.00060547,120]
[340741847,1729770647634,-500.0,0.00060547,120]
[340741848,1729770647643,-671.29,0.00060547,120]
[340741849,1729770647653,-500.0,0.00060547,120]
[340741850,1729770647663,-500.0,0.00060547,120]
[340741851,1729770647673,-529.99,0.00060547,120]
[340741852,1729770647683,-500.0,0.00060547,120]
[340741853,1729770647692,-500.0,0.00060547,120]
[340741854,1729770647702,-500.0,0.00060547,120]
[340741855,1729770647711,-725.63,0.00060547,120]
[340741856,1729770647721,-1262.9,0.00060547,120]
[340741857,1729770647731,-5826.9,0.00060547,120]
[340741858,1729770647740,-1870.81,0.00060547,120]
[340741859,1729770647750,-500.0,0.00060547,120]
[340741860,1729770647761,-518.14,0.00060547,120]
[340741861,1729770647771,-521.29,0.00060547,120]
[340741862,1729770647780,-500.0,0.00060547,120]
[340741863,1729770647790,-953.95,0.00060547,7]
[340741864,1729770647800,-500.0,0.00060547,120]
[340741865,1729770647810,-500.0,0.00060547,120]
[340741866,1729770647821,-500.0,0.00060547,120]
[340741867,1729770647831,-500.0,0.00060547,120]
[340741868,1729770647841,-500.0,0.00060547,120]
[340741869,1729770647851,-500.0,0.00060547,120]
[340741870,1729770647860,-1000.0,0.00060547,120]
[340741871,1729770647870,-445.27182796,0.00060547,120]
[340741872,1729770647879,-500.0,0.00060547,120]
[340741873,1729770647888,-500.0,0.00060547,120]
[340741874,1729770647898,-500.0,0.00060547,120]
[340741875,1729770647907,-500.0,0.00060547,120]
[340741876,1729770647916,-1473.4,0.00060547,120]
[340741877,1729770647926,-525.92243388,0.00060547,120]
[340741878,1729770647936,-23014.84,0.00060547,120]
[340741879,1729770647946,-356.18155976,0.00060547,120]
[340741880,1729770647957,-1061.17,0.00060547,120]
[340741881,1729770647967,-542.35898386,0.00060547,120]
[340741882,1729770647977,-500.0,0.00060547,120]
[340741883,1729770647986,-1889.61,0.00060547,120]
[340741884,1729770647995,-500.0,0.00060547,120]
[340741885,1729770648005,-421.95884306,0.00060547,120]
[340741886,1729770648015,-500.0,0.00060547,7]
[340741887,1729770648024,-458.27917703,0.00060547,120]
[340741888,1729770648033,-500.0,0.00060547,120]
[340741889,1729770648043,-500.0,0.00060547,120]
[340741890,1729770648052,-500.0,0.00060547,120]
[340741891,1729770648061,-500.0,0.00060547,120]
[340741892,1729770648071,-500.0,0.00060547,120]
[340741893,1729770648080,-1000.0,0.00060547,120]
[340741894,1729770648089,-5499.42,0.00060547,120]
[340741895,1729770648100,-272.95418532,0.00060547,120]
[340741896,1729770648109,-500.0,0.00060547,120]
[340741897,1729770648119,-500.0,0.00060547,120]
[340741898,1729770648128,-500.0,0.00060547,120]
[340741899,1729770648138,-500.0,0.00060547,120]
[340741900,1729770648147,-515.53,0.00060547,120]
[340741901,1729770648157,-541.02,0.00060547,120]
[340741902,1729770648167,-500.0,0.00060547,120]
[340741903,1729770648176,-500.0,0.00060547,120]
[340741904,1729770648186,-523.72025737,0.00060547,120]
[340741905,1729770648195,-589.01287468,0.00060547,120]
[340741906,1729770648205,-500.0,0.00060547,120]
[340741907,1729770648214,-560.22,0.00060547,120]
[340741908,1729770648224,-508.61,0.00060547,120]
[340741909,1729770648233,-511.46051164,0.00060547,120]
[340741910,1729770648244,-500.0,0.00060547,120]
[340741911,1729770648253,-500.0,0.00060547,120]
[340741912,1729770648263,-500.0,0.00060547,120]
[340741913,1729770648273,-530.73959047,0.00060547,120]
[340741914,1729770648286,-500.0,0.00060547,120]
[340741915,1729770648296,-500.0,0.00060547,120]
[340741916,1729770648306,-500.0,0.00060547,120]
[340741917,1729770648316,-500.0,0.00060547,2]
[340741918,1729770648327,-500.0,0.00060547,120]
[340741919,1729770648336,-1548.55,0.00060547,120]
[340741920,1729770648346,-500.0,0.00060547,120]
[340741921,1729770648357,-500.0,0.00060547,120]
[340741922,1729770648367,-500.0,0.00060547,120]
[340741923,1729770648376,-500.0,0.00060547,120]
[340741924,1729770648386,-500.0,0.00060547,120]
[340741925,1729770648396,-956.25,0.00060547,120]
[340741926,1729770648476,-1040.84,0.00060547,120]
[340741927,1729770648486,-500.0,0.00060547,120]
[340741928,1729770648496,-500.0,0.00060547,120]
[340741929,1729770648506,-582.09,0.00060547,120]
[340741930,1729770648517,-1377.02,0.00060547,120]
[340741931,1729770648528,-500.0,0.00060547,120]
[340741932,1729770648537,-150.0,0.00060548,30]
[340741933,1729770648547,-150.0,0.0006055,30]
[340741934,1729770648557,-150.0,0.00060555,30]
[340741935,1729770648567,-150.0,0.00060561,30]
[340741936,1729770648578,-150.0,0.00060564,30]
[340741937,1729770648587,-150.0,0.00060564,30]
[340741938,1729770648598,-150.0,0.00060565,30]
[340741939,1729770648607,-150.0,0.00060566,30]
[340741940,1729770648617,-150.0,0.0006057,30]
[340741941,1729770648627,-150.0,0.00060571,30]
[340741942,1729770648637,-150.0,0.00060574,30]
[340741943,1729770648646,-150.0,0.00060574,30]
[340741944,1729770648656,-150.0,0.00060577,30]
[340741945,1729770648666,-150.0,0.00060581,30]
[340741946,1729770648676,-150.0,0.00060583,30]
[340741947,1729770648686,-150.0,0.00060593,30]
[340741948,1729770648696,-150.0,0.00060597,30]
[340741949,1729770648706,-150.0,0.00060601,30]
[340741950,1729770648715,-150.0,0.00060606,30]
[340741951,1729770648725,-150.0,0.00060606,30]
[340741952,1729770648735,-150.0,0.00060613,30]
[340741953,1729770648745,-621.25,0.00060613,2]
[340741954,1729770648755,-150.0,0.00060623,30]
[340741955,1729770648765,-150.0,0.00060628,30]
[340741956,1729770648775,-150.0,0.00060638,30]
[340741957,1729770648785,-150.0,0.00060651,30]
[340741958,1729770648795,-150.0,0.00060656,30]
[340741959,1729770648804,-150.0,0.00060666,30]
[340741960,1729770648815,-150.0,0.0006067,30]
[340741961,1729770648826,-150.0,0.00060676,30]
[340741962,1729770648835,-228.81565506,0.00060679,30]
[340741963,1729770648844,-150.0,0.00060688,30]
[340741964,1729770648855,-150.0,0.00060699,30]
[340741965,1729770648865,-150.0,0.000607,30]
[340741966,1729770648874,-150.0,0.00060707,30]
[340741967,1729770648884,-150.0,0.00060707,30]
[340741968,1729770648894,-150.0,0.00060708,30]
[340741969,1729770648905,-150.0,0.00060714,30]
[340741970,1729770648914,-150.0,0.00060717,30]
[340741971,1729770648925,-150.0,0.00060718,30]
[340741972,1729770648934,-150.0,0.00060719,30]
[340741973,1729770648944,-150.0,0.00060745,30]
[340741974,1729770648954,-150.0,0.00060749,30]
[340741975,1729770648964,-150.0,0.0006075,30]
[340741976,1729770648974,-150.0,0.00060751,30]
[340741977,1729770648985,-150.0,0.00060767,30]
[340741978,1729770648995,-150.0,0.00060775,30]
[340741979,1729770649006,-150.0,0.00060775,30]
[340741980,1729770649015,-150.0,0.00060784,30]
[340741981,1729770649026,-150.0,0.00060785,30]
[340741982,1729770649037,-150.0,0.00060788,30]
[340741983,1729770649047,-150.0,0.00060793,30]
[340741984,1729770649057,-150.0,0.00060794,30]
[340741985,1729770649067,-150.0,0.00060808,30]
[340741986,1729770649078,-150.0,0.00060811,30]
[340741987,1729770649087,-150.0,0.00060812,30]
[340741988,1729770649098,-1299.26,0.00060821,120]
[340741989,1729770649107,-500.0,0.00060821,120]
[340741990,1729770649116,-500.0,0.00060821,120]
[340741991,1729770649126,-500.0,0.00060821,120]
[340741992,1729770649135,-150.0,0.00060821,120]
[340741993,1729770649145,-500.0,0.00060821,120]
[340741994,1729770649155,-500.0,0.00060821,120]
[340741995,1729770649165,-500.0,0.00060821,120]
[340741996,1729770649175,-500.0,0.00060821,120]
[340741997,1729770649184,-500.0,0.00060821,120]
[340741998,1729770649194,-943.4,0.00060821,120]
[340741999,1729770649204,-500.0,0.00060821,120]
[340742000,1729770649214,-500.0,0.00060821,120]
[340742001,1729770649224,-500.0,0.00060821,120]
[340742002,1729770649234,-500.0,0.00060821,120]
[340742003,1729770649244,-507.96,0.00060821,120]
[340742004,1729770649253,-500.0,0.00060821,120]
[340742005,1729770649264,-534.72,0.00060821,120]
[340742006,1729770649273,-500.0,0.00060821,120]
[340742007,1729770649286,-500.0,0.00060821,120]
[340742008,1729770649295,-1738.65,0.00060821,120]
[340742009,1729770649304,-655.38,0.00060821,120]
[340742010,1729770649314,-500.0,0.00060821,120]
[340742011,1729770649324,-500.0,0.00060821,120]
[340742012,1729770649334,-500.0,0.00060821,120]
[340742013,1729770649344,-788.67464563,0.00060821,120]
[340742014,1729770649353,-500.0,0.00060821,120]
[340742015,1729770649365,-500.0,0.00060821,120]
[340742016,1729770649375,-1000.0,0.00060821,120]
[340742017,1729770649385,-500.0,0.00060821,120]
[340742018,1729770649394,-1176.07,0.00060821,120]
[340742019,1729770649404,-500.0,0.00060821,120]
[340742020,1729770649413,-500.0,0.00060821,120]
[340742021,1729770649423,-500.0,0.00060821,120]
[340742022,1729770649433,-878.78,0.00060821,120]
[340742023,1729770649443,-500.0,0.00060821,120]
[340742024,1729770649454,-500.0,0.00060821,120]
[340742025,1729770649464,-1980.98,0.00060821,120]
[340742026,1729770649474,-894.75,0.00060821,120]
[340742027,1729770649485,-500.0,0.00060821,120]
[340742028,1729770649495,-579.03,0.00060821,120]
[340742029,1729770649505,-500.0,0.00060821,120]
[340742030,1729770649515,-500.0,0.00060821,120]
[340742031,1729770649524,-500.0,0.00060821,120]
[340742032,1729770649535,-500.0,0.00060821,120]
[340742033,1729770649544,-500.0,0.00060821,120]
[340742034,1729770649555,-500.0,0.00060821,120]
[340742035,1729770649565,-500.0,0.00060821,120]
[340742036,1729770649575,-500.0,0.00060821,120]
[340742037,1729770649587,-500.0,0.00060821,120]
[340742038,1729770649596,-500.0,0.00060821,120]
[340742039,1729770649606,-548.91946614,0.00060821,120]
[340742040,1729770649623,-500.0,0.00060821,120]
[340742041,1729770649632,-500.0,0.00060821,120]
[340742042,1729770649642,-500.0,0.00060821,120]
[340742043,1729770649652,-500.0,0.00060821,120]
[340742044,1729770649727,-512.82080094,0.00060821,120]
[340742045,1729770649736,-522.61335278,0.00060821,120]
[340742046,1729770649746,-533.71596679,0.00060821,120]
[340742047,1729770649756,-579.71,0.00060821,120]
[340742048,1729770649765,-500.0,0.00060821,120]
[340742049,1729770649774,-1003.46,0.00060821,120]
[340742050,1729770649785,-500.0,0.00060821,120]
[340742051,1729770649795,-500.0,0.00060821,120]
[340742052,1729770649805,-521.5784017,0.00060821,120]
[340742053,1729770649815,-500.0,0.00060821,120]
[340742054,1729770649826,-515.13693638,0.00060821,120]
[340742055,1729770649839,-500.0,0.00060821,120]
[340742056,1729770649849,-978.86,0.00060821,120]
[340742057,1729770649858,-500.0,0.00060821,120]
[340742058,1729770649868,-524.80790915,0.00060821,120]
[340742059,1729770649880,-500.0,0.00060821,120]
[340742060,1729770649890,-1000.0,0.00060821,120]
[340742061,1729770649900,-500.0,0.00060821,120]
[340742062,1729770649909,-500.0,0.00060821,120]
[340742063,1729770649918,-500.0,0.00060821,120]
[340742064,1729770649928,-500.0,0.00060821,120]
[340742065,1729770649938,-500.0,0.00060821,120]
[340742066,1729770649947,-500.0,0.00060821,120]
[340742067,1729770649957,-500.0,0.00060821,120]
[340742068,1729770649967,-500.0,0.00060821,120]
[340742069,1729770649976,-907.35,0.00060821,120]
[340742070,1729770649986,-500.0,0.00060821,120]
[340742071,1729770649996,-500.0,0.00060821,120]
[340742072,1729770650006,-500.0,0.00060821,120]
[340742073,1729770650015,-500.0,0.00060821,120]
[340742074,1729770650024,-500.0,0.00060821,120]
[340742075,1729770650034,-500.0,0.00060821,120]
[340742076,1729770650045,-496.55090085,0.00060821,120]
[340742077,1729770650054,-1698.95,0.00060821,120]
[340742078,1729770650065,-500.0,0.00060821,120]
[340742079,1729770650075,-500.0,0.00060821,120]
[340742080,1729770650084,-606.93257572,0.00060821,120]
[340742081,1729770650094,-500.0,0.00060821,60]
[340742082,1729770650103,-2000.0,0.00060821,120]
[340742083,1729770650113,-500.0,0.00060821,120]
[340742084,1729770650122,-500.0,0.00060821,120]
[340742085,1729770650131,-150.0,0.00060821,120]
[340742086,1729770650143,-500.0,0.00060821,120]
[340742087,1729770650152,-500.0,0.00060821,120]
[340742088,1729770650162,-500.0,0.00060821,120]
[340742089,1729770650171,-504.30315398,0.00060821,120]
[340742090,1729770650181,-500.0,0.00060821,120]
[340742091,1729770650190,-500.0,0.00060821,120]
[340742092,1729770650199,-1664.51,0.00060821,120]
[340742093,1729770650208,-1365.12,0.00060821,120]
[340742094,1729770650222,-558.83,0.00060821,120]
[340742095,1729770650232,-500.0,0.00060821,120]
[340742096,1729770650242,-500.0,0.00060821,120]
[340742097,1729770650252,-500.0,0.00060821,120]
[340742098,1729770650262,-5079.61,0.00060821,120]
[340742099,1729770650271,-500.0,0.00060821,120]
[340742100,1729770650285,-612.41,0.00060821,14]
[340742101,1729770650294,-500.0,0.00060821,120]
[340742102,1729770650304,-500.0,0.00060821,120]
[340742103,1729770650313,-500.0,0.00060821,120]
[340742104,1729770650325,-504.99691165,0.00060821,120]
[340742105,1729770650334,-500.0,0.00060821,120]
[340742106,1729770650343,-500.0,0.00060821,120]
[340742107,1729770650353,-523.44189962,0.00060821,120]
[340742108,1729770650363,-500.0,0.00060821,120]
[340742109,1729770650373,-500.0,0.00060821,120]
[340742110,1729770650382,-500.0,0.00060821,120]
[340742111,1729770650392,-500.0,0.00060821,120]
[340742112,1729770650401,-154.02787275,0.00060821,120]
[340742113,1729770650411,-560.39,0.00060821,120]
[340742114,1729770650420,-514.73202452,0.00060821,120]
[340742115,1729770650429,-500.0,0.00060821,120]
[340742116,1729770650439,-167.81415164,0.00060821,120]
[340742117,1729770650449,-500.0,0.00060821,120]
[340742118,1729770650459,-500.0,0.00060821,120]
[340742119,1729770650468,-679.18,0.00060821,120]
[340742120,1729770650478,-500.0,0.00060821,120]
[340742121,1729770650487,-500.0,0.00060821,120]
[340742122,1729770650497,-500.0,0.00060821,120]
[340742123,1729770650508,-500.0,0.00060821,120]
[340742124,1729770650518,-500.0,0.00060821,120]
[340742125,1729770650528,-500.0,0.00060821,120]
[340742126,1729770650537,-500.0,0.00060821,120]
[340742127,1729770650548,-859.58,0.00060821,120]
[340742128,1729770650558,-500.0,0.00060821,120]
[340742129,1729770650567,-500.0,0.00060821,120]
[340742130,1729770650578,-500.0,0.00060821,120]
[340742131,1729770650587,-497.01807829,0.00060821,120]
[340742132,1729770650596,-500.0,0.00060821,120]
[340742133,1729770650606,-536.09562097,0.00060821,120]
[340742134,1729770650615,-500.0,0.00060821,120]
[340742135,1729770650625,-3575.92,0.00060821,120]
[340742136,1729770650634,-536.64334622,0.00060821,120]
[340742137,1729770650645,-500.0,0.00060821,120]
[340742138,1729770650654,-500.0,0.00060821,120]
[340742139,1729770650664,-720.96,0.00060821,120]
[340742140,1729770650674,-500.0,0.00060821,120]
[340742141,1729770650683,-528.13103462,0.00060821,120]
[340742142,1729770650694,-500.0,0.00060821,120]
[340742143,1729770650704,-500.0,0.00060821,120]
[340742144,1729770650714,-500.0,0.00060821,120]
[340742145,1729770650723,-500.0,0.00060821,120]
[340742146,1729770650732,-500.0,0.00060821,120]
[340742147,1729770650742,-150.9655,0.00060821,120]
[340742148,1729770650751,-500.0,0.00060821,120]
[340742149,1729770650761,-500.0,0.00060821,120]
[340742150,1729770650770,-902.51,0.00060821,120]
[340742151,1729770650780,-500.0,0.00060821,120]
[340742152,1729770650849,-500.0,0.00060821,120]
[340742153,1729770650859,-550.79278883,0.00060821,120]
[340742154,1729770650869,-541.21,0.00060821,120]
[340742155,1729770650878,-500.0,0.00060821,120]
[340742156,1729770650887,-500.0,0.00060821,120]
[340742157,1729770650897,-500.0,0.00060821,120]
[340742158,1729770650906,-500.0,0.00060821,120]
[340742159,1729770650915,-500.0,0.00060821,120]
[340742160,1729770650924,-500.0,0.00060821,120]
[340742161,1729770650934,-500.0,0.00060821,120]
[340742162,1729770650943,-898.97,0.00060821,120]
[340742163,1729770650953,-500.0,0.00060821,120]
[340742164,1729770650962,-500.0,0.00060821,120]
[340742165,1729770650971,-883.91,0.00060821,120]
[340742166,1729770650980,-500.0,0.00060821,120]
[340742167,1729770650990,-500.0,0.00060821,120]
[340742168,1729770650999,-622.25,0.00060821,120]
[340742169,1729770651008,-4880.54,0.00060821,120]
[340742170,1729770651017,-898.7,0.00060821,120]
[340742171,1729770651027,-1555.96,0.00060821,120]
[340742172,1729770651036,-500.0,0.00060821,120]
[340742173,1729770651046,-500.0,0.00060821,120]
[340742174,1729770651055,-500.0,0.00060821,120]
[340742175,1729770651064,-1699.04,0.00060821,120]
[340742176,1729770651074,-500.0,0.00060821,120]
[340742177,1729770651083,-500.0,0.00060821,120]
[340742178,1729770651093,-764.73,0.00060821,120]
[340742179,1729770651102,-663.54,0.00060821,120]
[340742180,1729770651112,-175.39642,0.00060821,120]
[340742181,1729770651121,-549.20194928,0.00060821,120]
[340742182,1729770651131,-898.61,0.00060821,120]
[340742183,1729770651140,-500.0,0.00060821,120]
[340742184,1729770651150,-500.0,0.00060821,120]
[340742185,1729770651159,-1452.21,0.00060821,120]
[340742186,1729770651169,-13644.44,0.00060821,120]
[340742187,1729770651178,-500.0,0.00060821,120]
[340742188,1729770651187,-500.0,0.00060821,120]
[340742189,1729770651197,-500.0,0.00060821,120]
[340742190,1729770651206,-500.0,0.00060821,120]
[340742191,1729770651215,-500.0,0.00060821,120]
[340742192,1729770651225,-500.0,0.00060821,120]
[340742193,1729770651234,-150.0,0.00060821,120]
[340742194,1729770651244,-500.0,0.00060821,120]
[340742195,1729770651253,-510.25,0.00060821,120]
[340742196,1729770651263,-539.88,0.00060821,120]
[340742197,1729770651272,-16013.8,0.00060821,5]
[340742198,1729770651282,-500.0,0.00060821,120]
[340742199,1729770651293,-381.1,0.00060821,7]
[340742200,1729770651302,-500.0,0.00060821,120]
[340742201,1729770651312,-671.29,0.00060821,120]
[340742202,1729770651330,-500.0,0.00060821,120]
[340742203,1729770651348,-500.0,0.00060821,120]
[340742204,1729770651365,-529.99,0.00060821,120]
[340742205,1729770651384,-500.0,0.00060821,120]
[340742206,1729770651405,-500.0,0.00060821,120]
[340742207,1729770651421,-500.0,0.00060821,120]
[340742208,1729770651438,-725.63,0.00060821,120]
[340742209,1729770651454,-1262.9,0.00060821,120]
[340742210,1729770651468,-5826.9,0.00060821,120]
[340742211,1729770651487,-1870.81,0.00060821,120]
[340742212,1729770651506,-500.0,0.00060821,120]
[340742213,1729770651521,-518.14,0.00060821,120]
[340742214,1729770651533,-521.29,0.00060821,120]
[340742215,1729770651553,-500.0,0.00060821,120]
[340742216,1729770651568,-953.95,0.00060821,7]
[340742217,1729770651585,-500.0,0.00060821,120]
[340742218,1729770651599,-500.0,0.00060821,120]
[340742219,1729770651613,-500.0,0.00060821,120]
[340742220,1729770651628,-500.0,0.00060821,120]
[340742221,1729770651642,-500.0,0.00060821,120]
[340742222,1729770651656,-500.0,0.00060821,120]
[340742223,1729770651670,-1000.0,0.00060821,120]
[340742224,1729770651684,-500.0,0.00060821,120]
[340742225,1729770651699,-541.84354594,0.00060821,120]
[340742226,1729770651714,-500.0,0.00060821,120]
[340742227,1729770651728,-500.0,0.00060821,120]
[340742228,1729770651742,-1473.4,0.00060821,120]
[340742229,1729770651756,-23014.84,0.00060821,120]
[340742230,1729770651769,-1061.17,0.00060821,120]
[340742231,1729770651784,-524.47747316,0.00060821,120]
[340742232,1729770651799,-1889.61,0.00060821,120]
[340742233,1729770651813,-500.0,0.00060821,120]
[340742234,1729770651828,-500.0,0.00060821,7]
[340742235,1729770651842,-500.0,0.00060821,120]
[340742236,1729770651857,-500.0,0.00060821,120]
[340742237,1729770651870,-500.0,0.00060821,120]
[340742238,1729770651884,-500.0,0.00060821,120]
[340742239,1729770651899,-500.0,0.00060821,120]
[340742240,1729770651913,-1000.0,0.00060821,120]
[340742241,1729770651927,-5499.42,0.00060821,120]
[340742242,1729770651941,-500.0,0.00060821,120]
[340742243,1729770651955,-500.0,0.00060821,120]
[340742244,1729770651968,-500.0,0.00060821,120]
[340742245,1729770651984,-515.53,0.00060821,120]
[340742246,1729770651999,-500.0,0.00060821,120]
[340742247,1729770652013,-541.02,0.00060821,120]
[340742248,1729770652028,-500.0,0.00060821,120]
[340742249,1729770652045,-500.0,0.00060821,120]
[340742250,1729770652055,-500.0,0.00060821,120]
[340742251,1729770652065,-560.22,0.00060821,120]
[340742252,1729770652179,-508.61,0.00060821,120]
[340742253,1729770652192,-500.0,0.00060821,120]
[340742254,1729770652202,-500.0,0.00060821,120]
[340742255,1729770652211,-318.17256153,0.00060821,120]
[340742256,1729770652220,-500.0,0.00060821,120]
[340742257,1729770652230,-500.0,0.00060821,120]
[340742258,1729770652239,-500.0,0.00060821,120]
[340742259,1729770652249,-500.0,0.00060821,2]
[340742260,1729770652260,-500.0,0.00060821,120]
[340742261,1729770652270,-1548.55,0.00060821,120]
[340742262,1729770652283,-500.0,0.00060821,120]
[340742263,1729770652294,-500.0,0.00060821,120]
[340742264,1729770652304,-617.98478451,0.00060821,120]
[340742265,1729770652314,-500.0,0.00060821,120]
[340742266,1729770652325,-500.0,0.00060821,120]
[340742267,1729770652335,-956.25,0.00060821,120]
[340742268,1729770652345,-1040.84,0.00060821,120]
[340742269,1729770652355,-500.0,0.00060821,120]
[340742270,1729770652366,-582.09,0.00060821,120]
[340742271,1729770652376,-1377.02,0.00060821,120]
[340742272,1729770652386,-500.0,0.00060821,120]
[340742273,1729770652397,-12191.31572059,0.00060842,15]
[340742274,1729770652407,-357.35970627,0.00060999,120]
[340742275,1729770652417,-118938.89318391,0.00061,120]
[340742276,1729770652427,-1000.0,0.00061018,120]
[340742277,1729770652437,-150.0,0.00061094,120]
[340742278,1729770652446,-1299.26,0.00061095,120]
[340742279,1729770652456,-500.0,0.00061095,120]
[340742280,1729770652466,-500.0,0.00061095,120]
[340742281,1729770652476,-500.0,0.00061095,120]
[340742282,1729770652485,-150.0,0.00061095,120]
[340742283,1729770652495,-500.0,0.00061095,120]
[340742284,1729770652505,-500.0,0.00061095,120]
[340742285,1729770652514,-500.0,0.00061095,120]
[340742286,1729770652524,-500.0,0.00061095,120]
[340742287,1729770652533,-500.0,0.00061095,120]
[340742288,1729770652543,-943.4,0.00061095,120]
[340742289,1729770652553,-500.0,0.00061095,120]
[340742290,1729770652562,-500.0,0.00061095,120]
[340742291,1729770652573,-168.11818637,0.00061095,120]
[340742292,1729770652583,-500.0,0.00061095,120]
[340742293,1729770652592,-507.96,0.00061095,120]
[340742294,1729770652602,-500.0,0.00061095,120]
[340742295,1729770652612,-534.72,0.00061095,120]
[340742296,1729770652622,-528.91443894,0.00061095,120]
[340742297,1729770652631,-500.0,0.00061095,120]
[340742298,1729770652641,-1738.65,0.00061095,120]
[340742299,1729770652651,-655.38,0.00061095,120]
[340742300,1729770652660,-500.0,0.00061095,120]
[340742301,1729770652670,-500.0,0.00061095,120]
[340742302,1729770652680,-500.0,0.00061095,120]
[340742303,1729770652689,-500.0,0.00061095,120]
[340742304,1729770652699,-500.0,0.00061095,120]
[340742305,1729770652708,-1000.0,0.00061095,120]
[340742306,1729770652718,-500.0,0.00061095,120]
[340742307,1729770652727,-1176.07,0.00061095,120]
[340742308,1729770652737,-500.0,0.00061095,120]
[340742309,1729770652746,-500.0,0.00061095,120]
[340742310,1729770652755,-500.0,0.00061095,120]
[340742311,1729770652766,-878.78,0.00061095,120]
[340742312,1729770652775,-542.07668763,0.00061095,120]
[340742313,1729770652785,-500.0,0.00061095,120]
[340742314,1729770652794,-1980.98,0.00061095,120]
[340742315,1729770652804,-894.75,0.00061095,120]
[340742316,1729770652813,-500.0,0.00061095,120]
[340742317,1729770652823,-579.03,0.00061095,120]
[340742318,1729770652833,-500.0,0.00061095,120]
[340742319,1729770652842,-209.08610575,0.00061095,120]
[340742320,1729770652851,-500.0,0.00061095,120]
[340742321,1729770652861,-500.0,0.00061095,120]
[340742322,1729770652870,-500.0,0.00061095,120]
[340742323,1729770652880,-500.0,0.00061095,120]
[340742324,1729770652889,-500.0,0.00061095,120]
[340742325,1729770652899,-481.95842736,0.00061095,120]
[340742326,1729770652908,-500.0,0.00061095,120]
[340742327,1729770652918,-500.0,0.00061095,120]
[340742328,1729770652927,-500.0,0.00061095,120]
[340742329,1729770652936,-500.0,0.00061095,120]
[340742330,1729770652946,-500.0,0.00061095,120]
[340742331,1729770652955,-500.0,0.00061095,120]
[340742332,1729770652965,-579.71,0.00061095,120]
[340742333,1729770652975,-500.0,0.00061095,120]
[340742334,1729770652985,-1003.46,0.00061095,120]
[340742335,1729770652994,-500.0,0.00061095,120]
[340742336,1729770653003,-500.0,0.00061095,120]
[340742337,1729770653013,-500.0,0.00061095,120]
[340742338,1729770653023,-500.0,0.00061095,120]
[340742339,1729770653032,-978.86,0.00061095,120]
[340742340,1729770653042,-546.5830039,0.00061095,120]
[340742341,1729770653051,-500.0,0.00061095,120]
[340742342,1729770653060,-1000.0,0.00061095,120]
[340742343,1729770653070,-500.0,0.00061095,120]
[340742344,1729770653080,-597.16080329,0.00061095,120]